fUST/lending_fUST_20241123
["ID","MTS","AMOUNT","RATE_DAILY","PERIOD"]
[343118532,1732367446852,-1131.53,0.00023835,2]
[343118534,1732367446861,-500.0,0.00023835,2]
[343118536,1732367446870,-575.15,0.00023835,2]
[343118538,1732367446879,-500.0,0.00023835,2]
[343118540,1732367446888,-756.3,0.00023835,2]
[343118542,1732367446897,-598.60223126,0.00023835,2]
[343118544,1732367446907,-500.0,0.00023835,2]
[343118546,1732367446916,-1303.95,0.00023835,2]
[343118548,1732367446926,-836.89,0.00023835,2]
[343118549,1732367446935,-9333.42,0.00023835,2]
[343118552,1732367446945,-509.92,0.00023835,2]
[343118554,1732367446955,-706.44,0.00023835,2]
[343118556,1732367446964,-2491.21,0.00023835,2]
[343118558,1732367446974,-500.0,0.00023835,2]
[343118559,1732367446983,-550.14,0.00023835,2]
[343118561,1732367446994,-605.55,0.00023835,2]
[343118563,1732367447003,-4486.55,0.00023835,2]
[343118565,1732367447013,-1776.08,0.00023835,2]
[343118567,1732367447023,-685.27,0.00023835,2]
[343118568,1732367447033,-585.23,0.00023835,2]
[343118569,1732367447043,-1295.74,0.00023835,2]
[343118570,1732367447064,-533.81007207,0.00023835,2]
[343118571,1732367447074,-509.63,0.00024109,2]
[343118572,1732367447083,-500.0,0.00024109,2]
[343118573,1732367447093,-500.0,0.00024109,2]
[343118574,1732367447102,-500.0,0.00024109,2]
[343118575,1732367447111,-1119.64,0.00024109,2]
[343118576,1732367447121,-522.84,0.00024109,2]
[343118577,1732367447130,-1131.53,0.00024109,2]
[343118578,1732367447139,-500.0,0.00024109,2]
[343118579,1732367447150,-575.15,0.00024109,2]
[343118580,1732367447159,-500.0,0.00024109,2]
[343118581,1732367447169,-756.3,0.00024109,2]
[343118582,1732367447179,-500.0,0.00024109,2]
[343118583,1732367447194,-1303.95,0.00024109,2]
[343118584,1732367447203,-836.89,0.00024109,2]
[343118585,1732367447213,-9333.42,0.00024109,2]
[343118586,1732367447223,-509.92,0.00024109,2]
[343118587,1732367447233,-706.44,0.00024109,2]
[343118588,1732367447242,-2491.21,0.00024109,2]
[343118589,1732367447251,-500.0,0.00024109,2]
[343118591,1732367447261,-550.14,0.00024109,2]
[343118593,1732367447271,-605.55,0.00024109,2]
[343118595,1732367447281,-4486.55,0.00024109,2]
[343118597,1732367447290,-1776.08,0.00024109,2]
[343118599,1732367447300,-685.27,0.00024109,2]
[343118601,1732367447310,-585.23,0.00024109,2]
[343118603,1732367447319,-1295.74,0.00024109,2]
[343118605,1732367447329,-509.63,0.00024383,2]
[343118607,1732367447338,-576.4545784,0.00024383,2]
[343118609,1732367447347,-500.0,0.00024383,2]
[343118611,1732367447357,-500.0,0.00024383,2]
[343118613,1732367447367,-1119.64,0.00024383,2]
[343118615,1732367447376,-522.84,0.00024383,2]
[343118617,1732367447386,-1131.53,0.00024383,2]
[343118619,1732367447395,-500.0,0.00024383,2]
[343118621,1732367447404,-575.15,0.00024383,2]
[343118623,1732367447412,-542.76119161,0.00024383,2]
[343118625,1732367447423,-756.3,0.00024383,2]
[343118627,1732367447433,-500.0,0.00024383,2]
[343118629,1732367447443,-1303.95,0.00024383,2]
[343118630,1732367447452,-836.89,0.00024383,2]
[343118631,1732367447462,-9333.42,0.00024383,2]
[343118632,1732367447471,-509.92,0.00024383,2]
[343118634,1732367447481,-706.44,0.00024383,2]
[343118636,1732367447490,-2491.21,0.00024383,2]
[343118638,1732367447499,-239.13392953,0.00024383,2]
[343118640,1732367447509,-550.14,0.00024383,2]
[343118642,1732367447518,-605.55,0.00024383,2]
[343118644,1732367447528,-4486.55,0.00024383,2]
[343118646,1732367447537,-1776.08,0.00024383,2]
[343118648,1732367447547,-685.27,0.00024383,2]
[343118650,1732367447556,-585.23,0.00024383,2]
[343118653,1732367447566,-1295.74,0.00024383,2]
[343118655,1732367447575,-305.12887969,0.00024421,2]
[343118657,1732367447584,-509.63,0.00024657,2]
[343118659,1732367447593,-200.0,0.00024657,2]
[343118660,1732367447602,-200.0,0.00024657,2]
[343118663,1732367447612,-200.0,0.00024657,2]
[343118665,1732367447622,-200.0,0.00024657,2]
[343118667,1732367447632,-200.0,0.00024657,2]
[343118669,1732367447642,-200.0,0.00024657,2]
[343118670,1732367447651,-200.0,0.00024657,2]
[343118673,1732367447661,-200.0,0.00024657,2]
[343118675,1732367447672,-200.0,0.00024657,2]
[343118677,1732367447682,-200.0,0.00024657,2]
[343118679,1732367447691,-200.0,0.00024657,2]
[343118681,1732367447701,-200.0,0.00024657,2]
[343118683,1732367447710,-200.0,0.00024657,2]
[343118685,1732367447719,-200.0,0.00024657,2]
[343118687,1732367447731,-200.0,0.00024657,2]
[343118689,1732367447743,-200.0,0.00024657,2]
[343118691,1732367447753,-200.0,0.00024657,2]
[343118693,1732367447762,-282.0474066,0.00024657,2]
[343118695,1732367447771,-531.29291679,0.00024657,2]
[343118697,1732367447781,-500.0,0.00024657,2]
[343118699,1732367447790,-1119.64,0.00024657,2]
[343118701,1732367447799,-522.84,0.00024657,2]
[343118703,1732367447809,-1131.53,0.00024657,2]
[343118705,1732367447818,-500.0,0.00024657,2]
[343118706,1732367447828,-575.15,0.00024657,2]
[343118707,1732367447837,-756.3,0.00024657,2]
[343118708,1732367447847,-500.0,0.00024657,2]
[343118709,1732367447857,-1303.95,0.00024657,2]
[343118710,1732367447866,-836.89,0.00024657,2]
[343118711,1732367447875,-9333.42,0.00024657,2]
[343118712,1732367447885,-509.92,0.00024657,2]
[343118713,1732367447894,-706.44,0.00024657,2]
[343118714,1732367447904,-2491.21,0.00024657,2]
[343118715,1732367447913,-550.14,0.00024657,2]
[343118716,1732367447924,-605.55,0.00024657,2]
[343118717,1732367447934,-4486.55,0.00024657,2]
[343118718,1732367447943,-1776.08,0.00024657,2]
[343118719,1732367447952,-685.27,0.00024657,2]
[343118720,1732367447961,-585.23,0.00024657,2]
[343118721,1732367447970,-1295.74,0.00024657,2]
[343118723,1732367447980,-200.0,0.00024658,15]
[343118725,1732367447990,-25418.95,0.000247,2]
[343118727,1732367448000,-1716.71767311,0.0002493,2]
[343118729,1732367448009,-509.63,0.00024931,2]
[343118731,1732367448019,-361.01148764,0.00024931,2]
[343118733,1732367448029,-1119.64,0.00024931,2]
[343118735,1732367448039,-522.84,0.00024931,2]
[343118737,1732367448049,-1131.53,0.00024931,2]
[343118739,1732367448058,-500.0,0.00024931,2]
[343118741,1732367448068,-575.15,0.00024931,2]
[343118743,1732367448079,-756.3,0.00024931,2]
[343118745,1732367448089,-500.0,0.00024931,9]
[343118747,1732367448099,-500.0,0.00024931,2]
[343118749,1732367448111,-1303.95,0.00024931,2]
[343118751,1732367448121,-836.89,0.00024931,2]
[343118753,1732367448132,-9333.42,0.00024931,2]
[343118755,1732367448145,-509.92,0.00024931,2]
[343118757,1732367448155,-706.44,0.00024931,2]
[343118759,1732367448167,-500.0,0.00024931,2]
[343118762,1732367448185,-2491.21,0.00024931,2]
[343118764,1732367448199,-550.14,0.00024931,2]
[343118766,1732367448213,-605.55,0.00024931,2]
[343118769,1732367448227,-4486.55,0.00024931,2]
[343118771,1732367448240,-1776.08,0.00024931,2]
[343118773,1732367448252,-685.27,0.00024931,2]
[343118775,1732367448264,-585.23,0.00024931,2]
[343118778,1732367448275,-1295.74,0.00024931,2]
[343118780,1732367448285,-392.0,0.00024932,2]
[343118782,1732367448298,-263693.72287694,0.00025,2]
[343118784,1732367448310,-500.0,0.00025,7]
[343118786,1732367448325,-300.0,0.00025,2]
[343118788,1732367448338,-300.0,0.00025,2]
[343118790,1732367448351,-273.599999,0.00025,2]
[343118792,1732367448365,-2588.55611007,0.00025,2]
[343118795,1732367448378,-1041.79445913,0.00025,2]
[343118797,1732367448390,-203.6775441,0.00025,2]
[343118799,1732367448402,-165.69622902,0.00025,2]
[343118801,1732367448413,-57020.30109045,0.00025,2]
[343118803,1732367448427,-510.54110858,0.00025,2]
[343118805,1732367448440,-10364.0,0.00025,2]
[343118807,1732367448451,-347.2459302,0.00025,2]
[343118810,1732367448462,-829.11280836,0.00025,2]
[343118812,1732367448474,-69301.38098369,0.00025,2]
[343118814,1732367448484,-300.0,0.00025,2]
[343118816,1732367448495,-300.0,0.00025,2]
[343118818,1732367448506,-273.599999,0.00025,2]
[343118820,1732367448517,-191.6,0.00025,2]
[343118823,1732367448529,-161.0,0.00025,2]
[343118825,1732367448541,-392.0,0.00025,2]
[343118827,1732367448555,-303.33363667,0.00025,2]
[343118829,1732367448566,-303.33363667,0.00025,2]
[343118832,1732367448577,-202.0,0.00025,2]
[343118834,1732367448587,-303.31845556,0.00025,2]
[343118836,1732367448597,-500.0,0.00025,17]
[343118838,1732367448607,-2000.0,0.00025072,2]
[343118840,1732367448619,-107956.19007162,0.0002509,2]
[343118842,1732367448631,-34874.87906688,0.0002509,2]
[343118844,1732367448642,-680.0521688,0.00025205,2]
[343118846,1732367448653,-560.5,0.00025205,2]
[343118849,1732367448665,-509.63,0.00025205,2]
[343118851,1732367448678,-1119.64,0.00025205,2]
[343118853,1732367448690,-522.84,0.00025205,2]
[343118856,1732367448703,-1131.53,0.00025205,2]
[343118858,1732367448715,-500.0,0.00025205,2]
[343118860,1732367448727,-575.15,0.00025205,2]
[343118862,1732367448740,-756.3,0.00025205,2]
[343118865,1732367448751,-451.33441422,0.00025205,2]
[343118867,1732367448763,-1303.95,0.00025205,2]
[343118869,1732367448774,-9333.42,0.00025205,2]
[343118871,1732367448785,-836.89,0.00025205,2]
[343118873,1732367448796,-509.92,0.00025205,2]
[343118875,1732367448806,-706.44,0.00025205,2]
[343118878,1732367448817,-2491.21,0.00025205,2]
[343118880,1732367448831,-550.14,0.00025205,2]
[343118882,1732367448842,-605.55,0.00025205,2]
[343118884,1732367448853,-4486.55,0.00025205,2]
[343118886,1732367448865,-1776.08,0.00025205,2]
[343118889,1732367448877,-685.27,0.00025205,2]
[343118891,1732367448889,-585.23,0.00025205,2]
[343118893,1732367448901,-1295.74,0.00025205,2]
[343118895,1732367448911,-392.0,0.00025205,2]
[343118897,1732367448921,-303.33363667,0.0002525,2]
[343118899,1732367448932,-303.33363667,0.0002525,2]
[343118901,1732367448942,-303.31845556,0.0002525,2]
[343118904,1732367448953,-305.12887969,0.00025325,2]
[343118906,1732367448964,-900.0,0.00025469,3]
[343118908,1732367448976,-560.5,0.00025479,2]
[343118910,1732367448987,-509.72950269,0.00025479,2]
[343118912,1732367448998,-1119.65175308,0.00025479,2]
[343118914,1732367449009,-522.93538323,0.00025479,2]
[343118916,1732367449020,-1131.75860161,0.00025479,2]
[343118918,1732367449031,-460.14643167,0.00025479,2]
[343118920,1732367449041,-575.23760274,0.00025479,2]
[343118923,1732367449053,-756.32324322,0.00025479,2]
[343118925,1732367449064,-1304.00995987,0.00025479,2]
[343118927,1732367449075,-9333.56695742,0.00025479,2]
[343118929,1732367449086,-837.12791851,0.00025479,2]
[343118931,1732367449098,-509.99324599,0.00025479,2]
[343118933,1732367449109,-706.59939421,0.00025479,2]
[343118935,1732367449121,-2491.3743367,0.00025479,2]
[343118937,1732367449131,-550.27676666,0.00025479,2]
[343118940,1732367449143,-605.709118,0.00025479,2]
[343118942,1732367449154,-4486.71984589,0.00025479,2]
[343118944,1732367449166,-1776.18636346,0.00025479,2]
[343118946,1732367449180,-685.48399822,0.00025479,2]
[343118948,1732367449192,-585.3920675,0.00025479,2]
[343118950,1732367449203,-1295.82,0.00025479,2]
[343118952,1732367449214,-392.0,0.00025479,2]
[343118954,1732367449226,-7238.0393757,0.00025488,2]
[343118956,1732367449238,-5000.0,0.00025488,7]
[343118958,1732367449248,-303.33363667,0.000255,2]
[343118961,1732367449260,-303.33363667,0.000255,2]
[343118963,1732367449271,-303.31845556,0.000255,2]
[343118965,1732367449282,-300.0,0.000257,2]
[343118967,1732367449293,-300.0,0.000257,2]
[343118969,1732367449303,-303.33363667,0.0002575,2]
[343118971,1732367449315,-303.33363667,0.0002575,2]
[343118973,1732367449326,-303.31845556,0.0002575,2]
[343118975,1732367449337,-560.5,0.00025753,2]
[343118978,1732367449348,-153.0,0.00025753,2]
[343118980,1732367449359,-153.0,0.00025753,2]
[343118982,1732367449369,-153.0,0.00025753,2]
[343118984,1732367449379,-392.0,0.00025753,2]
[343118986,1732367449390,-5000.0,0.000258,2]
[343118988,1732367449401,-152.05647256,0.00025873,2]
[343118990,1732367449411,-392.0,0.0002589,2]
[343118992,1732367449422,-4000.0,0.000259,2]
[343118994,1732367449432,-52547.06267405,0.00026,2]
[343118996,1732367449442,-529.20703379,0.00026,2]
[343118998,1732367449453,-5797.64909081,0.00026,7]
[343119000,1732367449463,-9609.39701723,0.00026,3]
[343119003,1732367449474,-303.33363667,0.00026,2]
[343119005,1732367449484,-303.33363667,0.00026,2]
[343119007,1732367449494,-303.31845556,0.00026,2]
[343119009,1732367449505,-500.0,0.00026,20]
[343119011,1732367449515,-310.20604549,0.00026021,2]
[343119013,1732367449526,-560.5,0.00026027,2]
[343119015,1732367449536,-5647.02334655,0.0002611,2]
[343119017,1732367449547,-304.267258,0.00026164,2]
[343119020,1732367449557,-408.630783,0.00026164,2]
[343119022,1732367449568,-424.8326851,0.00026164,2]
[343119024,1732367449579,-305.12887969,0.0002623,2]
[343119026,1732367449590,-455.000455,0.0002625,4]
[343119028,1732367449601,-455.000455,0.0002625,4]
[343119030,1732367449611,-454.97768334,0.0002625,4]
[343119033,1732367449622,-560.5,0.00026301,2]
[343119035,1732367449632,-660.0,0.00026384,2]
[343119037,1732367449644,-7458.94652043,0.0002649,2]
[343119039,1732367449654,-455.000455,0.000265,4]
[343119041,1732367449665,-455.000455,0.000265,4]
[343119043,1732367449677,-454.97768334,0.000265,4]
[343119045,1732367449688,-560.5,0.00026575,2]
[343119048,1732367449699,-2500.0,0.00026609,2]
[343119050,1732367449711,-300.0,0.000267,2]
[343119052,1732367449722,-300.0,0.000267,2]
[343119054,1732367449733,-455.000455,0.0002675,4]
[343119056,1732367449743,-455.000455,0.0002675,4]
[343119058,1732367449754,-454.97768334,0.0002675,4]
[343119060,1732367449764,-25418.95,0.000268,2]
[343119062,1732367449775,-560.5,0.00026849,2]
[343119064,1732367449786,-163.724344,0.00026921,2]
[343119066,1732367449796,-313.92516663,0.00026963,2]
[343119069,1732367449808,-4430.76570392,0.00027,30]
[343119071,1732367449818,-3766.0,0.00027,15]
[343119073,1732367449829,-455.000455,0.00027,4]
[343119075,1732367449839,-455.000455,0.00027,4]
[343119077,1732367449849,-454.97768334,0.00027,4]
[343119079,1732367449860,-706.60387,0.00027,23]
[343119081,1732367449870,-560.5,0.00027123,2]
[343119083,1732367449880,-305.12887969,0.00027134,2]
[343119085,1732367449891,-5571.54220255,0.00027138,15]
[343119087,1732367449901,-5000.0,0.00027138,10]
[343119089,1732367449912,-392.0,0.00027185,2]
[343119091,1732367449924,-404.0,0.00027185,2]
[343119094,1732367449935,-455.000455,0.0002725,4]
[343119096,1732367449946,-455.000455,0.0002725,4]
[343119098,1732367449957,-454.97768334,0.0002725,4]
[343119100,1732367449967,-560.5,0.00027397,2]
[343119102,1732367449978,-211.8060889,0.00027397,2]
[343119104,1732367449989,-535.71,0.00027397,2]
[343119106,1732367449999,-500.0,0.00027397,2]
[343119108,1732367450010,-500.0,0.00027397,2]
[343119110,1732367450021,-500.0,0.00027397,2]
[343119112,1732367450031,-510.71246641,0.00027397,2]
[343119114,1732367450043,-514.39988783,0.00027397,2]
[343119117,1732367450054,-570.91739902,0.00027397,2]
[343119119,1732367450066,-500.0,0.00027397,2]
[343119121,1732367450079,-99.35881027,0.00027397,60]
[343119123,1732367450090,-585.29,0.00027397,5]
[343119125,1732367450101,-9020.81460127,0.00027427,7]
[343119127,1732367450113,-44373.54905596,0.000275,2]
[343119129,1732367450124,-1260.72265,0.000275,2]
[343119131,1732367450134,-500.0,0.00027671,2]
[343119134,1732367450145,-560.5,0.00027671,2]
[343119136,1732367450155,-300.0,0.000277,2]
[343119138,1732367450168,-300.0,0.000277,2]
[343119157,1732367450356,-445.91,0.00027718,2]
[343119159,1732367450372,-500.0,0.00027945,2]
[343119162,1732367450384,-560.5,0.00027945,2]
[343119164,1732367450393,-32002.23371113,0.0002799,2]
[343119166,1732367450403,-1168.39721526,0.0002799,7]
[343119168,1732367450413,-1196.7670448,0.00028,2]
[343119170,1732367450422,-221128.8858854,0.00028,30]
[343119172,1732367450436,-163007.44957307,0.00028,30]
[343119174,1732367450446,-500.71,0.00028,4]
[343119176,1732367450455,-500.0,0.00028,4]
[343119177,1732367450465,-1000.0,0.00028,2]
[343119179,1732367450474,-151.0,0.00028,7]
[343119181,1732367450483,-32639.06900643,0.00028,2]
[343119183,1732367450492,-305.12887969,0.00028038,2]
[343119185,1732367450502,-151.0,0.00028116,7]
[343119187,1732367450512,-151.0,0.00028116,7]
[343119189,1732367450521,-151.0,0.00028116,7]
[343119191,1732367450531,-151.0,0.00028138,7]
[343119193,1732367450540,-151.0,0.00028138,7]
[343119194,1732367450549,-151.0,0.00028138,7]
[343119195,1732367450559,-151.0,0.00028138,7]
[343119196,1732367450568,-151.0,0.00028138,7]
[343119197,1732367450578,-151.0,0.00028138,7]
[343119198,1732367450588,-151.0,0.00028138,7]
[343119199,1732367450597,-151.0,0.00028138,7]
[343119200,1732367450606,-170.800784,0.00028138,7]
[343119201,1732367450615,-330.07308847,0.00028138,2]
[343119202,1732367450625,-137299.85796729,0.00028138,10]
[343119203,1732367450702,-129060.13405097,0.00028138,10]
[343119204,1732367450715,-42000.089831,0.00028138,10]
[343119205,1732367450767,-2778.28022037,0.00028138,10]
[343119206,1732367450795,-266.4483435,0.00025,2]
[343119207,1732367450815,-2824.33264976,0.0002007,2]
[343119208,1732367450824,-36.82154274,0.00025,2]
[343119209,1732367450833,-303.26988624,0.0002525,2]
[343119210,1732367450844,-303.26988624,0.000255,2]
[343119211,1732367450854,-289.63855866,0.0002575,2]
[343119212,1732367450863,-8229.53571103,0.00028138,10]
[343119213,1732367450914,-12908.31590288,0.00028138,10]
[343119214,1732367450923,-578.87310017,0.00028138,2]
[343119215,1732367450935,-38502.86430547,0.00028138,5]
[343119216,1732367450945,-1487.69676563,0.00028138,2]
[343119217,1732367450955,-204685.05849127,0.00028138,10]
[343119218,1732367450964,-332284.23888141,0.00028138,10]
[343119219,1732367450973,-1727245.61414748,0.00028138,10]
[343119221,1732367450983,-500.0,0.00028138,2]
[343119223,1732367450992,-685868.37419296,0.00028138,10]
[343119225,1732367451004,-10073.39067857,0.00028138,10]
[343119228,1732367451016,-888.608999,0.00028138,10]
[343119230,1732367451027,-500.0,0.00028138,10]
[343120893,1732368631988,-1180.40452348,0.000109,2]
[343120894,1732368631998,-527.19283824,0.000125,2]
[343120895,1732368632010,-392.30170919,0.000125,2]
[343120896,1732368632019,-254.92218709,0.000134,2]
[343120915,1732368638029,-536.57106291,0.000134,2]
[343120916,1732368638040,-163.286501,0.00013973,2]
[343120917,1732368638050,-1064.86721103,0.00018,3]
[343120918,1732368638060,-250.0,0.00018053,2]
[343120919,1732368638070,-298.8241495,0.00018085,2]
[343120920,1732368638080,-618.833575,0.00018169,2]
[343120921,1732368638090,-171.6098085,0.00018296,2]
[343120922,1732368638099,-618.833575,0.00018854,2]
[343120923,1732368638109,-186.471174,0.00019178,2]
[343120924,1732368638119,-820.26237125,0.00019251,2]
[343120925,1732368638128,-300.0,0.00019349,2]
[343120926,1732368638138,-500.0,0.0001935,2]
[343120927,1732368638147,-500.0,0.0001935,2]
[343120928,1732368638157,-500.0,0.0001935,2]
[343120929,1732368638167,-500.0,0.0001935,2]
[343120930,1732368638177,-500.0,0.0001935,2]
[343120931,1732368638190,-396.64040636,0.00019351,2]
[343120932,1732368638200,-500.0,0.00019351,2]
[343120933,1732368638210,-500.0,0.00019351,2]
[343120934,1732368638220,-500.0,0.00019351,2]
[343120935,1732368638229,-500.0,0.00019351,2]
[343120936,1732368638239,-500.0,0.00019351,2]
[343120937,1732368638249,-500.0,0.00019351,2]
[343120938,1732368638258,-523.44476218,0.00019351,2]
[343120939,1732368638268,-500.0,0.00019351,2]
[343120940,1732368638278,-500.0,0.00019351,2]
[343120941,1732368638287,-500.0,0.00019351,2]
[343120942,1732368638297,-500.0,0.00019351,2]
[343120943,1732368638307,-219.00178224,0.00019351,2]
[343120944,1732368638317,-500.0,0.00019351,2]
[343120945,1732368638327,-500.0,0.00019351,2]
[343120946,1732368638337,-500.0,0.00019351,2]
[343120947,1732368638348,-500.0,0.00019351,2]
[343120948,1732368638358,-500.0,0.00019351,2]
[343120949,1732368638368,-500.0,0.00019351,2]
[343120950,1732368638379,-500.0,0.00019351,2]
[343120951,1732368638389,-500.0,0.00019351,2]
[343120952,1732368638398,-500.0,0.00019351,2]
[343120953,1732368638408,-500.0,0.00019351,2]
[343120954,1732368638418,-500.0,0.00019351,2]
[343120955,1732368638430,-500.0,0.00019351,2]
[343120956,1732368638440,-500.0,0.00019351,2]
[343120957,1732368638449,-500.0,0.00019351,2]
[343120958,1732368638459,-500.0,0.00019351,2]
[343120959,1732368638469,-500.0,0.00019351,2]
[343120960,1732368638479,-500.0,0.00019351,2]
[343120961,1732368638489,-500.0,0.00019351,2]
[343120962,1732368638499,-500.0,0.00019351,2]
[343120963,1732368638508,-500.0,0.00019351,2]
[343120964,1732368638524,-500.0,0.00019351,2]
[343120965,1732368638534,-500.0,0.00019351,2]
[343120966,1732368638543,-500.0,0.00019351,2]
[343120967,1732368638554,-500.0,0.00019351,2]
[343120968,1732368638566,-500.0,0.00019351,2]
[343120969,1732368638576,-500.0,0.00019351,2]
[343120970,1732368638586,-500.0,0.00019351,2]
[343120971,1732368638596,-396.81215127,0.00019351,2]
[343120972,1732368638606,-500.0,0.00019351,2]
[343120973,1732368638616,-500.0,0.00019351,2]
[343120974,1732368638626,-500.0,0.00019351,2]
[343120975,1732368638636,-500.0,0.00019351,2]
[343120976,1732368638646,-500.0,0.00019351,2]
[343120977,1732368638655,-500.0,0.00019351,2]
[343120978,1732368638665,-500.0,0.00019351,2]
[343120979,1732368638675,-500.0,0.00019351,2]
[343120980,1732368638687,-500.0,0.00019351,2]
[343120981,1732368638697,-500.0,0.00019351,2]
[343120982,1732368638707,-500.0,0.00019351,2]
[343120983,1732368638716,-319.116056,0.00019351,2]
[343120984,1732368638726,-500.0,0.00019351,2]
[343120985,1732368638736,-500.0,0.00019351,2]
[343120986,1732368638746,-500.0,0.00019351,2]
[343120987,1732368638755,-500.0,0.00019351,2]
[343120988,1732368638766,-500.0,0.00019351,2]
[343120989,1732368638776,-500.0,0.00019351,2]
[343120990,1732368638786,-500.0,0.00019351,2]
[343120991,1732368638796,-500.0,0.00019351,2]
[343120992,1732368638807,-500.0,0.00019351,2]
[343120993,1732368638817,-500.0,0.00019351,2]
[343120994,1732368638826,-500.0,0.00019351,2]
[343120995,1732368638836,-500.0,0.00019351,2]
[343120996,1732368638846,-500.0,0.00019351,2]
[343120997,1732368638855,-500.0,0.00019351,2]
[343120998,1732368638866,-500.0,0.00019351,2]
[343120999,1732368638875,-500.0,0.00019351,2]
[343121000,1732368638885,-500.0,0.00019351,2]
[343121001,1732368638895,-500.0,0.00019351,2]
[343121002,1732368638904,-500.0,0.00019351,2]
[343121003,1732368638914,-500.0,0.00019351,2]
[343121004,1732368638924,-500.0,0.00019351,2]
[343121005,1732368638936,-500.0,0.00019351,2]
[343121006,1732368638946,-500.0,0.00019351,2]
[343121007,1732368638955,-500.0,0.00019351,2]
[343121008,1732368638965,-500.0,0.00019351,2]
[343121009,1732368638975,-438.04186944,0.00019351,2]
[343121010,1732368638985,-500.0,0.00019351,2]
[343121011,1732368638995,-500.0,0.00019351,2]
[343121012,1732368639004,-500.0,0.00019351,2]
[343121013,1732368639013,-500.0,0.00019351,2]
[343121014,1732368639023,-500.0,0.00019351,2]
[343121015,1732368639033,-500.0,0.00019351,2]
[343121016,1732368639043,-500.0,0.00019351,2]
[343121017,1732368639053,-386.44317213,0.00019351,2]
[343121018,1732368639063,-500.0,0.00019351,2]
[343121019,1732368639073,-500.0,0.00019351,2]
[343121020,1732368639083,-500.0,0.00019351,2]
[343121021,1732368639095,-500.0,0.00019351,2]
[343121022,1732368639105,-555.05001092,0.00019351,2]
[343121023,1732368639115,-500.0,0.00019351,2]
[343121024,1732368639125,-500.0,0.00019351,2]
[343121025,1732368639135,-500.0,0.00019351,2]
[343121026,1732368639148,-500.0,0.00019351,2]
[343121027,1732368639158,-500.0,0.00019351,2]
[343121028,1732368639168,-500.0,0.00019351,2]
[343121029,1732368639180,-500.0,0.00019351,2]
[343121030,1732368639190,-500.0,0.00019351,2]
[343121031,1732368639200,-500.0,0.00019351,2]
[343121032,1732368639209,-500.0,0.00019351,2]
[343121033,1732368639219,-500.0,0.00019351,2]
[343121034,1732368639229,-500.0,0.00019351,2]
[343121035,1732368639238,-500.0,0.00019351,2]
[343121036,1732368639247,-500.0,0.00019351,2]
[343121037,1732368639257,-378.64431721,0.00019351,2]
[343121038,1732368639267,-500.0,0.00019351,2]
[343121039,1732368639276,-500.0,0.00019351,2]
[343121040,1732368639286,-500.0,0.00019351,2]
[343121043,1732368639296,-350.0,0.00019351,2]
[343121045,1732368639307,-500.0,0.00019351,2]
[343121049,1732368639317,-500.0,0.00019351,2]
[343121051,1732368639327,-500.0,0.00019351,2]
[343121053,1732368639336,-500.0,0.00019351,2]
[343121055,1732368639345,-500.0,0.00019351,2]
[343121057,1732368639355,-500.0,0.00019351,2]
[343121058,1732368639365,-500.0,0.00019351,2]